[Event "DFMMLV 2019"]
[Site "Braunfels"]
[Date "2019.06.20"]
[Round "1.11"]
[White "Bluebaum, Johanna"]
[Black "Aden, Dagmar"]
[Result "1-0"]
[ECO "D35"]
[WhiteElo "2003"]
[BlackElo "1855"]
[Annotator "NA"]
[PlyCount "125"]
[EventDate "2019.06.20"]
[EventType "team-tourn"]
[EventCountry "GER"]
[SourceTitle "playchess.com"]
[Source "ChessBase"]
[SourceQuality "1"]
[WhiteTeam "Hessen 1"]
[BlackTeam "Niedersachsen Bremen"]
[TimeControl "40/5400+30:1800+30"]

1. d4 {[%emt 0:00:00]} d5 {[%emt 0:00:00]} 2. c4 {[%emt 0:00:00]} e6 {[%emt 0:00:00]} 3. Nc3 {[%emt 0:00:00]} Nf6 {[%emt 0:00:00]} 4. cxd5 {[%emt 0:00:21]} exd5 {[%emt 0:00:11]} 5. Bg5 {[%emt 0:00:18]} Be7 {[%emt 0:01:12]} 6. e3 {[%emt 0:00:17]} O-O {[%emt 0:02:45]} 7. Bd3 {[%emt 0:00:12]} Nbd7 {[%emt 0:08:27]} 8. Nge2 {[%emt 0:00:38]} c6 {[%emt 0:01:42]} 9. Qc2 {[%emt 0:00:29]} Re8 {[%emt 0:01:57]} 10. O-O {[%emt 0:00:15]} Nf8 {[%emt 0:01:56]} 11. f3 {[%emt 0:04:27]} h6 {[%emt 0:05:50]} 12. Bh4 {[%emt 0:02:33]} N6h7 {[%emt 0:07:58]} 13. Bf2 {[%emt 0:00:54]} Bd6 {[%emt 0:10:27]} 14. e4 {[%emt 0:00:58]} Be6 {[%emt 0:07:26]} 15. e5 {[%emt 0:00:21]} Be7 {[%emt 0:02:01]} 16. f4 {[%emt 0:00:41]} Bg4 {[%emt 0:07:51]} 17. h3 {[%emt 0:08:23]} Bxe2 {[%emt 0:00:40]} 18. Nxe2 {[%emt 0:00:15]} Qc7 {[%emt 0:17:03]} 19. f5 {[%emt 0:03:19]} Ng5 {[%emt 0:02:52]} 20. Nf4 {[%emt 0:01:08]} Rad8 {[%emt 0:02:17]} 21. h4 {[%emt 0:01:29]} Ngh7 {[%emt 0:02:41]} 22. Rae1 {[%emt 0:02:56]} f6 {[%emt 0:01:13]} 23. Ne6 {[%emt 0:05:28]} Nxe6 {[%emt 0:00:26]} 24. fxe6 {[%emt 0:00:08]} Nf8 {[%emt 0:00:26]} 25. Bf5 {[%emt 0:12:33]} fxe5 {[%emt 0:01:39]} 26. Bg3 {[%emt 0:04:08]} Qb6 {[%emt 0:01:29]} 27. Bxe5 {[%emt 0:00:21]} Bxh4 {[%emt 0:01:38]} 28. Re3 {[%emt 0:10:07]} Re7 {[%emt 0:03:58]} 29. Qe2 {[%emt 0:04:30]} c5 {[%emt 0:01:27]} 30. Rb3 {[%emt 0:01:34]} Qc6 {[%emt 0:01:07]} 31. Qg4 {[%emt 0:04:38]} Bg5 {[%emt 0:00:24]} 32. dxc5 {[%emt 0:01:36]} Qxc5+ {[%emt 0:00:32]} 33. Bd4 {[%emt 0:00:18]} Qd6 {[%emt 0:01:16]} 34. Bxa7 {[%emt 0:10:27]} Rc8 {[%emt 0:00:34]} 35. Re1 {[%emt 0:02:17]} Rc4 {[%emt 0:00:49]} 36. Qe2 {[%emt 0:02:34]} Rf4 {[%emt 0:01:07]} 37. Bh3 {[%emt 0:00:20]} d4 {[%emt 0:01:19]} 38. Qe5 {[%emt 0:03:11]} Qxe5 {[%emt 0:01:07]} 39. Rxe5 {[%emt 0:00:09]} Rh4 {[%emt 0:01:10]} 40. Bc5 {[%emt 0:02:46]} Ng6 {[%emt 0:01:56]} 41. Bxe7 {[%emt 0:19:01]} Nxe5 {[%emt 0:05:01]} 42. Bxg5 {[%emt 0:02:56]} hxg5 {[%emt 0:00:07]} 43. Rxb7 {[%emt 0:01:45]} Kf8 {[%emt 0:04:35]} 44. Rb5 {[%emt 0:06:04]} Re4 {[%emt 0:02:46]} 45. Bf5 {[%emt 0:00:24]} Re2 {[%emt 0:01:53]} 46. Kf1 {[%emt 0:00:19]} Re3 {[%emt 0:00:34]} 47. Rb8+ {[%emt 0:01:35]} Ke7 {[%emt 0:00:32]} 48. Rb7+ {[%emt 0:00:04]} Kf8 {[%emt 0:00:50]} 49. Rb4 {[%emt 0:02:15]} d3 {[%emt 0:02:04]} 50. Rd4 {[%emt 0:01:25]} g6 {[%emt 0:00:32]} 51. Be4 {[%emt 0:00:14]} Ke7 {[%emt 0:04:30]} 52. a4 {[%emt 0:02:41]} Re2 {[%emt 0:03:35]} 53. b4 {[%emt 0:01:58]} Ra2 {[%emt 0:00:11]} 54. a5 {[%emt 0:00:40]} Ra3 {[%emt 0:00:51]} 55. Ke1 {[%emt 0:00:25]} Kxe6 {[%emt 0:00:42]} 56. Bb7 {[%emt 0:00:53]} Ra1+ {[%emt 0:01:11]} 57. Kd2 {[%emt 0:00:15]} Ra2+ {[%emt 0:00:24]} 58. Kc3 {[%emt 0:01:07]} Rc2+ {[%emt 0:01:32]} 59. Kb3 {[%emt 0:00:01]} Rc1 {[%emt 0:01:03]} 60. a6 {[%emt 0:00:25]} Ra1 {[%emt 0:00:46]} 61. Kc3 {[%emt 0:00:44]} Rc1+ {[%emt 0:02:14]} 62. Kb2 {[%emt 0:00:54]} Rc2+ {[%emt 0:00:07]} 63. Kb3 {[%emt 0:00:24]} 1-0

[Event "DFMMLV 2019"]
[Site "Braunfels"]
[Date "2019.06.20"]
[Round "1.12"]
[White "Wollscheid, Stefanie"]
[Black "Lukas, Anne"]
[Result "0-1"]
[ECO "B35"]
[WhiteElo "1705"]
[BlackElo "1842"]
[Annotator "NA"]
[PlyCount "100"]
[EventDate "2019.06.20"]
[EventType "team-tourn"]
[EventCountry "GER"]
[SourceTitle "playchess.com"]
[Source "ChessBase"]
[SourceQuality "1"]
[BlackTeam "Hessen 1"]
[TimeControl "40/5400+30:1800+30"]

1. e4 {[%emt 0:00:00]} c5 {[%emt 0:00:00]} 2. Nf3 {[%emt 0:00:00]} g6 {[%emt 0:00:00]} 3. d4 {[%emt 0:00:32]} cxd4 {[%emt 0:00:00]} 4. Nxd4 {[%emt 0:01:59]} Bg7 {[%emt 0:00:00]} 5. Nc3 {[%emt 0:00:26]} Nc6 {[%emt 0:00:00]} 6. Be3 {[%emt 0:01:07]} Nf6 {[%emt 0:00:02]} 7. Bc4 {[%emt 0:01:43]} Na5 {[%emt 0:00:08]} 8. Bb3 {[%emt 0:01:37]} O-O {[%emt 0:00:07]} 9. O-O {[%emt 0:00:57]} d6 {[%emt 0:01:07]} 10. Qd2 {[%emt 0:03:31]} Ng4 {[%emt 0:00:19]} 11. Rab1 {[%emt 0:06:54]} Nxe3 {[%emt 0:00:33]} 12. fxe3 {[%emt 0:04:41]} Bd7 {[%emt 0:01:44]} 13. Rf2 {[%emt 0:04:15]} Rc8 {[%emt 0:03:27]} 14. Rbf1 {[%emt 0:06:17]} Nc4 {[%emt 0:03:49]} 15. Bxc4 {[%emt 0:15:08]} Rxc4 {[%emt 0:00:15]} 16. b3 {[%emt 0:01:06]} Rc8 {[%emt 0:01:10]} 17. Nd5 {[%emt 0:01:23]} b5 {[%emt 0:04:46]} 18. Nf3 {[%emt 0:06:47]} e6 {[%emt 0:01:01]} 19. Nf4 {[%emt 0:00:20]} Qb6 {[%emt 0:04:44]} 20. Ng5 {[%emt 0:09:28]} h6 {[%emt 0:00:45]} 21. Nxf7 {[%emt 0:08:33]} Rxf7 {[%emt 0:01:54]} 22. Nxg6 {[%emt 0:00:09]} Rxf2 {[%emt 0:00:23]} 23. Qxf2 {[%emt 0:01:01]} Kh7 {[%emt 0:01:14]} 24. Qg3 {[%emt 0:02:55]} Be8 {[%emt 0:03:27]} 25. Nf8+ {[%emt 0:04:21]} Kh8 {[%emt 0:04:28]} 26. Nxe6 {[%emt 0:01:48]} Qb7 {[%emt 0:01:39]} 27. Qxd6 {[%emt 0:01:07]} Qc6 {[%emt 0:07:34]} 28. Qe7 {[%emt 0:02:07]} Qc3 {[%emt 0:01:25]} 29. Rf8+ {[%emt 0:04:26]} Kh7 {[%emt 0:02:30]} 30. Rf1 {[%emt 0:03:23]} Bh5 {[%emt 0:05:13]} 31. Nxg7 {[%emt 0:03:02]} Qxg7 {[%emt 0:00:24]} 32. Qe6 {[%emt 0:01:05]} Rxc2 {[%emt 0:01:57]} 33. Qf5+ {[%emt 0:00:59]} Bg6 {[%emt 0:00:04]} 34. Qf3 {[%emt 0:00:39]} Qe7 {[%emt 0:02:06]} 35. e5 {[%emt 0:00:50]} Qxe5 {[%emt 0:00:17]} 36. h4 {[%emt 0:00:52]} Rc7 {[%emt 0:00:35]} 37. Qf4 {[%emt 0:00:54]} Qe7 {[%emt 0:02:51]} 38. Rf2 {[%emt 0:00:59]} Rc3 {[%emt 0:01:23]} 39. Rf3 {[%emt 0:00:39]} a5 {[%emt 0:02:05]} 40. Rg3 {[%emt 0:00:40]} Rc1+ {[%emt 0:01:23]} 41. Kh2 {[%emt 0:30:08]} a4 {[%emt 0:30:18]} 42. bxa4 {[%emt 0:01:21]} Rc4 {[%emt 0:00:06]} 43. e4 {[%emt 0:00:00]} Rxe4 {[%emt 0:00:00]} 44. Qd2 {[%emt 0:00:00]} Rxh4+ {[%emt 0:00:00]} 45. Rh3 {[%emt 0:00:00]} Rxh3+ {[%emt 0:00:00]} 46. Kxh3 {[%emt 0:00:00]} bxa4 {[%emt 0:00:00]} 47. Qc3 {[%emt 0:00:00]} Qe6+ {[%emt 0:00:00]} 48. g4 {[%emt 0:00:00]} Qxa2 {[%emt 0:00:00]} 49. Qc7+ {[%emt 0:00:00]} Qf7 {[%emt 0:00:00]} 50. Qc3 {[%emt 0:00:00]} Qb3 {[%emt 0:00:00]} 0-1

[Event "DFMMLV 2019"]
[Site "Braunfels"]
[Date "2019.06.20"]
[Round "1.13"]
[White "Frank, Michelle Viviane"]
[Black "Grabowski, Petra"]
[Result "1-0"]
[ECO "A40"]
[WhiteElo "1915"]
[BlackElo "1626"]
[Annotator "NA RC"]
[PlyCount "85"]
[EventDate "2019.06.20"]
[EventType "team-tourn"]
[EventCountry "GER"]
[SourceTitle "playchess.com"]
[Source "ChessBase"]
[SourceQuality "1"]
[BlackTeam "Niedersachsen Bremen"]
[TimeControl "40/5400+30:1800+30"]

1. d4 {[%emt 0:00:00]} e6 {[%emt 0:00:00]} 2. c3 {[%emt 0:01:03]} d5 {[%emt 0:01:18]} 3. Bf4 {[%emt 0:00:13]} c5 {[%emt 0:01:38]} 4. e3 {[%emt 0:00:06]} Nf6 {[%emt 0:06:08]} 5. Nd2 {[%emt 0:00:23]} Nbd7 {[%emt 0:03:21]} 6. Ngf3 {[%emt 0:03:06]} cxd4 {[%emt 0:12:44]} 7. exd4 {[%emt 0:00:22]} Be7 {[%emt 0:06:19]} 8. Bd3 {[%emt 0:00:13]} Nh5 {[%emt 0:07:09]} 9. Bg3 {[%emt 0:00:48]} Nxg3 {[%emt 0:04:07]} 10. hxg3 {[%emt 0:00:17]} g6 {[%emt 0:06:04]} 11. Qe2 {[%emt 0:00:25]} Bf6 {[%emt 0:04:10]} 12. g4 {[%emt 0:01:50]} Qe7 {[%emt 0:04:58]} 13. O-O-O {[%emt 0:01:22]} Nb6 {[%emt 0:03:54]} 14. Ne5 {[%emt 0:00:40]} Bd7 {[%emt 0:01:29]} 15. f4 {[%emt 0:00:13]} O-O-O {[%emt 0:02:56]} 16. g5 Bg7 {[%emt 0:04:55]} 17. Rh3 {[%emt 0:04:11]} f6 {[%emt 0:01:56]} 18. gxf6 Qxf6 {[%emt 0:06:11]} 19. Qe3 {[%emt 0:00:21]} Be8 {[%emt 0:05:06]} 20. Ndf3 {[%emt 0:08:41]} h6 {[%emt 0:01:30]} 21. Rdh1 {[%emt 0:01:28]} Nd7 {[%emt 0:00:16]} 22. g3 Nxe5 23. dxe5 {[%emt 0:01:19]} Qf8 {[%emt 0:02:38]} 24. Qxa7 {[%emt 0:00:26]} g5 {[%emt 0:00:02]} 25. Nd4 {[%emt 0:01:15]} Bd7 {[%emt 0:02:14]} 26. Bb5 {[%emt 0:06:46]} gxf4 {[%emt 0:02:55]} 27. Bxd7+ {[%emt 0:00:08]} Rxd7 {[%emt 0:01:14]} 28. Qa8+ {[%emt 0:00:22]} Kc7 {[%emt 0:00:01]} 29. Nxe6+ {[%emt 0:00:08]} Kc6 {[%emt 0:00:30]} 30. Qa4+ {[%emt 0:00:16]} Kb6 {[%emt 0:01:16]} 31. Nxf8 {[%emt 0:00:12]} Rf7 {[%emt 0:06:24]} 32. Qb4+ {[%emt 0:00:17]} Ka7 {[%emt 0:00:29]} 33. Ng6 {[%emt 0:00:11]} Rg8 {[%emt 0:00:59]} 34. Qd4+ {[%emt 0:00:17]} Ka8 {[%emt 0:00:28]} 35. Qxd5 {[%emt 0:00:16]} Rc8 {[%emt 0:01:33]} 36. Qxf7 {[%emt 0:00:10]} fxg3 {[%emt 0:00:33]} 37. Rxg3 {[%emt 0:00:32]} Bh8 {[%emt 0:00:30]} 38. Nxh8 {[%emt 0:00:10]} Rxh8 {[%emt 0:00:04]} 39. Rg7 {[%emt 0:00:08]} Rb8 {[%emt 0:00:13]} 40. Rh4 {[%emt 0:00:07]} Ka7 {[%emt 0:00:05]} 41. Ra4+ {[%emt 0:30:11]} Kb6 {[%emt 0:30:02]} 42. Rg6+ {[%emt 0:00:09]} Kc5 {[%emt 0:00:23]} 43. Qc4# 1-0

[Event "DFMMLV 2019"]
[Site "Braunfels"]
[Date "2019.06.20"]
[Round "1.14"]
[White "Wenke, Andrea"]
[Black "Werner, Rosalie"]
[Result "1/2-1/2"]
[ECO "C01"]
[WhiteElo "1756"]
[BlackElo "1610"]
[Annotator "NA"]
[PlyCount "132"]
[EventDate "2019.06.20"]
[EventType "team-tourn"]
[EventCountry "GER"]
[SourceTitle "playchess.com"]
[Source "ChessBase"]
[SourceQuality "1"]
[WhiteTeam "Niedersachsen Bremen"]
[BlackTeam "Hessen 2"]
[TimeControl "40/5400+30:1800+30"]

1. e4 {[%emt 0:00:00]} e6 {[%emt 0:00:00]} 2. d4 {[%emt 0:00:00]} d5 {[%emt 0:00:00]} 3. exd5 {[%emt 0:00:02]} exd5 {[%emt 0:00:00]} 4. Nc3 {[%emt 0:00:20]} c6 {[%emt 0:00:49]} 5. Bd3 {[%emt 0:01:15]} Bd6 {[%emt 0:00:29]} 6. Nf3 {[%emt 0:00:27]} Ne7 {[%emt 0:00:13]} 7. Ng5 {[%emt 0:02:47]} Bf5 {[%emt 0:33:36]} 8. Qf3 {[%emt 0:04:45]} Qd7 {[%emt 0:01:18]} 9. O-O {[%emt 0:06:36]} O-O {[%emt 0:01:44]} 10. Qh5 {[%emt 0:04:28]} Bxd3 {[%emt 0:01:43]} 11. cxd3 {[%emt 0:04:15]} Qf5 {[%emt 0:04:16]} 12. Qf3 {[%emt 0:02:03]} Nd7 {[%emt 0:03:01]} 13. Ne2 {[%emt 0:02:10]} Qxf3 {[%emt 0:09:14]} 14. Nxf3 {[%emt 0:00:28]} Ng6 {[%emt 0:00:25]} 15. Bd2 {[%emt 0:01:35]} Rfe8 {[%emt 0:00:31]} 16. Ng3 {[%emt 0:01:16]} Nf4 {[%emt 0:11:50]} 17. Bxf4 {[%emt 0:09:02]} Bxf4 {[%emt 0:00:11]} 18. Rfe1 {[%emt 0:00:18]} g6 {[%emt 0:01:43]} 19. Kf1 {[%emt 0:01:51]} f6 {[%emt 0:02:34]} 20. Re2 {[%emt 0:02:44]} Kf7 {[%emt 0:01:24]} 21. b4 {[%emt 0:03:07]} a6 {[%emt 0:01:33]} 22. a4 {[%emt 0:01:56]} Rxe2 {[%emt 0:03:37]} 23. Nxe2 {[%emt 0:02:15]} Bd6 {[%emt 0:01:26]} 24. Rb1 {[%emt 0:00:35]} b5 {[%emt 0:06:20]} 25. a5 {[%emt 0:01:01]} Rc8 {[%emt 0:00:56]} 26. h4 {[%emt 0:02:25]} h5 {[%emt 0:03:28]} 27. g3 {[%emt 0:03:02]} Nf8 {[%emt 0:00:14]} 28. Ne1 {[%emt 0:02:00]} Ne6 {[%emt 0:00:45]} 29. Nc2 {[%emt 0:00:42]} Ke7 {[%emt 0:02:33]} 30. Kg2 {[%emt 0:01:01]} Kd7 {[%emt 0:00:14]} 31. f4 {[%emt 0:01:43]} Re8 {[%emt 0:01:24]} 32. Kf3 {[%emt 0:00:28]} Rg8 {[%emt 0:01:12]} 33. Rg1 {[%emt 0:00:47]} g5 {[%emt 0:02:55]} 34. hxg5 {[%emt 0:05:04]} fxg5 {[%emt 0:00:14]} 35. Rh1 {[%emt 0:00:55]} g4+ {[%emt 0:01:30]} 36. Kf2 {[%emt 0:00:35]} Ng7 {[%emt 0:00:22]} 37. Nc1 {[%emt 0:00:40]} Re8 {[%emt 0:01:12]} 38. Nb3 {[%emt 0:00:31]} Kc7 {[%emt 0:00:38]} 39. Nc5 {[%emt 0:00:33]} Bxc5 {[%emt 0:00:30]} 40. dxc5 {[%emt 0:00:33]} Rh8 {[%emt 0:00:36]} 41. Nd4 {[%emt 0:34:40]} Kd7 {[%emt 0:30:40]} 42. Re1 {[%emt 0:02:45]} Re8 {[%emt 0:03:06]} 43. Rxe8 {[%emt 0:02:24]} Nxe8 {[%emt 0:00:08]} 44. f5 {[%emt 0:01:42]} Nf6 {[%emt 0:00:00]} 45. Ke3 {[%emt 0:00:00]} Nh7 {[%emt 0:00:00]} 46. Kf4 {[%emt 0:00:00]} Kc7 {[%emt 0:00:00]} 47. Ne6+ {[%emt 0:00:00]} Kd7 {[%emt 0:00:00]} 48. Ng7 {[%emt 0:00:00]} Nf6 {[%emt 0:00:00]} 49. Kg5 {[%emt 0:00:00]} h4 {[%emt 0:00:00]} 50. Kxh4 {[%emt 0:00:00]} d4 {[%emt 0:00:00]} 51. Ne6 {[%emt 0:00:00]} Nd5 {[%emt 0:00:00]} 52. Nxd4 {[%emt 0:00:00]} Nxb4 {[%emt 0:00:00]} 53. Kxg4 {[%emt 0:00:00]} Nxd3 {[%emt 0:00:00]} 54. f6 {[%emt 0:00:00]} Nxc5 {[%emt 0:00:00]} 55. Kf5 {[%emt 0:00:00]} b4 {[%emt 0:00:00]} 56. f7 {[%emt 0:00:00]} Ke7 {[%emt 0:00:00]} 57. Nxc6+ {[%emt 0:00:00]} Kxf7 {[%emt 0:00:00]} 58. Nxb4 {[%emt 0:00:00]} Nb3 {[%emt 0:01:41]} 59. Nxa6 {[%emt 0:00:00]} Nxa5 {[%emt 0:00:07]} 60. Nc5 {[%emt 0:00:00]} Nc4 {[%emt 0:00:55]} 61. Ne4 {[%emt 0:00:00]} Ne3+ {[%emt 0:00:26]} 62. Kf4 {[%emt 0:00:00]} Nd5+ {[%emt 0:00:11]} 63. Ke5 {[%emt 0:00:00]} Ne7 {[%emt 0:00:36]} 64. g4 {[%emt 0:00:00]} Kg6 {[%emt 0:00:48]} 65. Ke6 {[%emt 0:00:00]} Ng8 {[%emt 0:00:36]} 66. g5 {[%emt 0:00:00]} Nh6 {[%emt 0:00:24]} 1/2-1/2

[Event "DFMMLV 2019"]
[Site "Braunfels"]
[Date "2019.06.20"]
[Round "1.15"]
[White "Pralle, Katharina"]
[Black "Luecke, Kristina"]
[Result "1-0"]
[ECO "A16"]
[WhiteElo "1971"]
[BlackElo "1513"]
[Annotator "NA"]
[PlyCount "61"]
[EventDate "2019.06.20"]
[EventType "team-tourn"]
[EventCountry "GER"]
[SourceTitle "playchess.com"]
[Source "ChessBase"]
[SourceQuality "1"]
[WhiteTeam "Hessen 1"]
[BlackTeam "Niedersachsen Bremen"]
[TimeControl "40/5400+30:1800+30"]

1. c4 {[%emt 0:00:00]} Nf6 {[%emt 0:00:00]} 2. Nc3 {[%emt 0:00:00]} g6 {[%emt 0:00:38]} 3. g3 {[%emt 0:00:20]} Bg7 {[%emt 0:01:08]} 4. Bg2 {[%emt 0:00:08]} O-O {[%emt 0:01:11]} 5. Nf3 {[%emt 0:00:35]} d6 {[%emt 0:01:41]} 6. d3 {[%emt 0:01:24]} Nc6 {[%emt 0:09:45]} 7. Bd2 {[%emt 0:01:42]} a6 {[%emt 0:04:02]} 8. Qc1 {[%emt 0:00:32]} Ng4 {[%emt 0:10:56]} 9. h3 {[%emt 0:02:23]} Nge5 {[%emt 0:01:48]} 10. Bh6 {[%emt 0:02:33]} Nxf3+ {[%emt 0:02:39]} 11. Bxf3 {[%emt 0:00:09]} e5 {[%emt 0:11:57]} 12. Bxg7 {[%emt 0:13:37]} Kxg7 {[%emt 0:00:40]} 13. h4 {[%emt 0:01:02]} Nd4 {[%emt 0:09:40]} 14. Bg2 {[%emt 0:00:33]} c6 {[%emt 0:02:31]} 15. h5 {[%emt 0:09:38]} g5 {[%emt 0:11:28]} 16. h6+ {[%emt 0:00:43]} Kg6 {[%emt 0:04:21]} 17. Qd2 {[%emt 0:07:10]} f5 {[%emt 0:05:28]} 18. O-O-O {[%emt 0:02:02]} Bd7 {[%emt 0:03:50]} 19. e3 {[%emt 0:01:28]} Ne6 {[%emt 0:00:53]} 20. d4 {[%emt 0:00:38]} exd4 {[%emt 0:04:11]} 21. exd4 {[%emt 0:00:14]} Nc7 {[%emt 0:01:46]} 22. Qd3 {[%emt 0:23:07]} Qf6 {[%emt 0:02:23]} 23. Bh3 {[%emt 0:04:29]} b5 {[%emt 0:02:57]} 24. Bg2 {[%emt 0:10:55]} b4 {[%emt 0:02:34]} 25. Na4 {[%emt 0:03:27]} Rab8 {[%emt 0:00:18]} 26. c5 {[%emt 0:02:12]} Nb5 {[%emt 0:01:46]} 27. Nb6 {[%emt 0:05:10]} Qf7 {[%emt 0:01:10]} 28. Nc4 {[%emt 0:04:56]} Qf6 {[%emt 0:00:48]} 29. Qf3 {[%emt 0:02:01]} g4 {[%emt 0:00:49]} 30. Qf4 {[%emt 0:00:26]} dxc5 {[%emt 0:00:34]} 31. Ne5+ {[%emt 0:00:23]} 1-0

[Event "DFMMLV 2019"]
[Site "Braunfels"]
[Date "2019.06.20"]
[Round "1.16"]
[White "Evering, Kira"]
[Black "Heymann-Lobzhanidze, Anna-Luise"]
[Result "0-1"]
[ECO "C45"]
[WhiteElo "1332"]
[BlackElo "1950"]
[Annotator "NA RC"]
[PlyCount "59"]
[EventDate "2019.06.20"]
[EventType "team-tourn"]
[EventCountry "GER"]
[SourceTitle "playchess.com"]
[Source "ChessBase"]
[SourceQuality "1"]
[WhiteTeam "Niedersachsen Bremen"]
[BlackTeam "Hessen 1"]
[TimeControl "40/5400+30:1800+30"]

1. e4 {[%emt 0:00:00]} e5 {[%emt 0:00:00]} 2. Nf3 {[%emt 0:00:00]} Nc6 {[%emt 0:00:03]} 3. d4 {[%emt 0:00:08]} exd4 {[%emt 0:00:11]} 4. Nxd4 {[%emt 0:00:13]} Bc5 {[%emt 0:00:26]} 5. Nb3 {[%emt 0:00:48]} Bb6 {[%emt 0:00:07]} 6. Nc3 {[%emt 0:01:22]} d6 {[%emt 0:02:48]} 7. Qe2 {[%emt 0:03:10]} Be6 {[%emt 0:03:54]} 8. Be3 {[%emt 0:03:19]} Nge7 {[%emt 0:00:50]} 9. O-O-O {[%emt 0:02:26]} Ne5 {[%emt 0:14:54]} 10. Qd2 {[%emt 0:10:33]} O-O {[%emt 0:04:22]} 11. Kb1 {[%emt 0:03:20]} Nc4 {[%emt 0:05:37]} 12. Bxc4 {[%emt 0:00:22]} Bxc4 {[%emt 0:00:05]} 13. Na4 {[%emt 0:04:45]} Bxe3 {[%emt 0:00:46]} 14. Qxe3 {[%emt 0:04:44]} b5 {[%emt 0:01:36]} 15. Nc3 {[%emt 0:04:06]} b4 {[%emt 0:03:38]} 16. Na5 {[%emt 0:02:40]} Be6 {[%emt 0:07:08]} 17. Nd5 {[%emt 0:02:11]} Bxd5 {[%emt 0:07:35]} 18. exd5 {[%emt 0:00:40]} Re8 {[%emt 0:00:47]} 19. Qb3 {[%emt 0:05:30]} c5 {[%emt 0:06:41]} 20. dxc6 {[%emt 0:00:18]} Qxa5 {[%emt 0:00:18]} 21. Rxd6 {[%emt 0:00:49]} Rad8 {[%emt 0:10:06]} 22. Rhd1 {[%emt 0:07:00]} Nxc6 {[%emt 0:03:05]} 23. c3 {[%emt 0:02:05]} bxc3 {[%emt 0:01:27]} 24. Qxc3 {[%emt 0:00:39]} Qxc3 {[%emt 0:00:22]} 25. bxc3 {[%emt 0:00:14]} g6 {[%emt 0:03:11]} 26. Kc1 {[%emt 0:01:54]} Rxd6 {[%emt 0:00:24]} 27. Rxd6 {[%emt 0:00:16]} Ne5 {[%emt 0:00:56]} 28. Rd2 {[%emt 0:01:11]} Nc4 {[%emt 0:00:18]} 29. Rc2 {[%emt 0:01:44]} Re7 30. Kd1 0-1

[Event "DFMMLV 2019"]
[Site "Braunfels"]
[Date "2019.06.20"]
[Round "1.17"]
[White "Brandt, Carina"]
[Black "Khrapko, Marharyta"]
[Result "1/2-1/2"]
[ECO "B22"]
[WhiteElo "2085"]
[BlackElo "2074"]
[Annotator "NA"]
[PlyCount "134"]
[EventDate "2019.06.20"]
[EventType "team-tourn"]
[EventCountry "GER"]
[SourceTitle "playchess.com"]
[Source "ChessBase"]
[SourceQuality "1"]
[WhiteTeam "Hamburg"]
[BlackTeam "Bayern 1"]
[TimeControl "40/5400+30:1800+30"]

1. e4 {[%emt 0:00:00]} c5 {[%emt 0:00:00]} 2. c3 {[%emt 0:00:00]} Nf6 {[%emt 0:00:03]} 3. e5 {[%emt 0:00:00]} Nd5 {[%emt 0:00:02]} 4. Nf3 {[%emt 0:00:08]} Nc6 {[%emt 0:00:21]} 5. d4 {[%emt 0:00:08]} d6 {[%emt 0:01:05]} 6. Bc4 {[%emt 0:04:40]} e6 {[%emt 0:01:10]} 7. O-O {[%emt 0:01:48]} Be7 {[%emt 0:03:04]} 8. Nbd2 {[%emt 0:04:47]} O-O {[%emt 0:16:41]} 9. Ne4 $11 {[%emt 0:06:29]} dxe5 {[%emt 0:02:44]} 10. Nxe5 {[%emt 0:13:43]} cxd4 {[%emt 0:04:20]} 11. Nxc6 {[%emt 0:01:06]} bxc6 {[%emt 0:00:01]} 12. Qxd4 {[%emt 0:04:35]} Qb6 {[%emt 0:08:09]} 13. Qd3 {[%emt 0:07:08]} Qc7 {[%emt 0:10:59]} 14. Re1 {[%emt 0:09:12]} a5 {[%emt 0:01:39]} 15. Bb3 {[%emt 0:02:48]} Ba6 {[%emt 0:01:30]} 16. Qf3 {[%emt 0:01:05]} Rad8 {[%emt 0:11:42]} 17. Bc2 {[%emt 0:03:07]} h6 {[%emt 0:02:19]} 18. Bxh6 {[%emt 0:09:58]} gxh6 {[%emt 0:06:13]} 19. Qg4+ {[%emt 0:00:48]} Kh8 {[%emt 0:00:56]} 20. Qh5 {[%emt 0:00:09]} Qf4 {[%emt 0:12:36]} 21. g3 {[%emt 0:00:21]} Rg8 {[%emt 0:00:17]} 22. Kh1 {[%emt 0:02:45]} Nf6 {[%emt 0:00:06]} 23. Qxf7 {[%emt 0:02:25]} Qf3+ {[%emt 0:00:14]} 24. Kg1 {[%emt 0:00:04]} Rg7 {[%emt 0:01:03]} 25. Qxe6 {[%emt 0:00:25]} Bc8 {[%emt 0:00:15]} 26. Bd1 {[%emt 0:05:56]} Rxd1 {[%emt 0:07:37]} 27. Qxc8+ {[%emt 0:00:06]} Rg8 {[%emt 0:00:09]} 28. Qxg8+ {[%emt 0:01:05]} Kxg8 {[%emt 0:00:14]} 29. Nxf6+ {[%emt 0:00:07]} Qxf6 {[%emt 0:00:36]} 30. Raxd1 {[%emt 0:00:07]} Bc5 {[%emt 0:00:28]} 31. Rd2 {[%emt 0:01:13]} a4 {[%emt 0:01:34]} 32. Re4 {[%emt 0:02:20]} a3 {[%emt 0:03:20]} 33. Rg4+ {[%emt 0:01:35]} Kh8 {[%emt 0:01:31]} 34. Kg2 {[%emt 0:04:09]} axb2 {[%emt 0:03:21]} 35. Rxb2 {[%emt 0:00:09]} h5 {[%emt 0:00:25]} 36. Ra4 {[%emt 0:07:37]} Kg7 {[%emt 0:00:44]} 37. Rb7+ {[%emt 0:03:21]} Kg6 {[%emt 0:00:01]} 38. Rf4 {[%emt 0:00:06]} Qxc3 {[%emt 0:00:34]} 39. Rf3 {[%emt 0:01:48]} Qc4 {[%emt 0:00:47]} 40. Rc7 {[%emt 0:00:56]} Qd5 {[%emt 0:00:36]} 41. a4 {[%emt 0:31:38]} Bb4 {[%emt 0:30:30]} 42. h3 {[%emt 0:00:00]} c5 {[%emt 0:00:00]} 43. g4 {[%emt 0:00:00]} h4 {[%emt 0:00:00]} 44. Ra7 {[%emt 0:00:00]} c4 {[%emt 0:00:00]} 45. Ra6+ {[%emt 0:00:00]} Bd6 {[%emt 0:00:00]} 46. a5 {[%emt 0:00:00]} c3 {[%emt 0:00:00]} 47. Rxd6+ {[%emt 0:00:00]} Qxd6 {[%emt 0:00:00]} 48. Rxc3 {[%emt 0:00:00]} Qd5+ {[%emt 0:00:00]} 49. Kg1 {[%emt 0:00:00]} Qxa5 {[%emt 0:00:00]} 50. Rf3 {[%emt 0:00:00]} Qe1+ {[%emt 0:00:00]} 51. Kh2 {[%emt 0:00:00]} Qe5+ {[%emt 0:00:00]} 52. Kg1 {[%emt 0:00:00]} Qd5 {[%emt 0:00:00]} 53. Rf5 {[%emt 0:00:00]} Qe4 {[%emt 0:00:00]} 54. Kh2 {[%emt 0:00:00]} Kg7 {[%emt 0:00:00]} 55. Kg1 {[%emt 0:00:00]} Qd3 {[%emt 0:00:04]} 56. Kg2 {[%emt 0:00:00]} Qe2 {[%emt 0:00:29]} 57. Kg1 {[%emt 0:00:00]} Qd1+ {[%emt 0:00:23]} 58. Kg2 {[%emt 0:00:00]} Qd3 {[%emt 0:00:07]} 59. Kh2 {[%emt 0:00:00]} Qf1 {[%emt 0:00:22]} 60. Rf3 {[%emt 0:00:00]} Qd1 {[%emt 0:02:48]} 61. Rf5 {[%emt 0:00:00]} Qe1 {[%emt 0:00:19]} 62. Kg2 {[%emt 0:00:00]} Qe4+ {[%emt 0:00:11]} 63. Kh2 {[%emt 0:00:00]} Qd3 {[%emt 0:00:21]} 64. Kg2 {[%emt 0:00:00]} Qd6 {[%emt 0:00:07]} 65. Kg1 {[%emt 0:00:00]} Qd1+ {[%emt 0:00:51]} 66. Kg2 {[%emt 0:00:00]} Qd6 {[%emt 0:00:30]} 67. Kg1 {[%emt 0:00:00]} Qd1+ {[%emt 0:00:04]} 1/2-1/2